bitfinex/quotes_SOLUSD_20250118
["timestamp","ask_amount","ask_price","bid_price","bid_amount"]
[1737242773215,0.0001,258.5,258.49,4.44888707]
[1737242773416,0.0001,258.5,258.49,3.8686]
[1737242775023,0.0001,258.5,258.44,22.60632709]
[1737242775209,0.0001,258.5,258.46,18.73712709]
[1737242775409,0.03,258.88,258.86,10.0]
[1737242775612,0.03,258.88,258.62,56.0]
[1737242775613,2.15e-05,258.96,258.95,10.0]
[1737242775813,2.15e-05,258.96,258.95,28.73712709]
[1737242776019,2.15e-05,258.96,258.95,33.73712709]
[1737242776330,59.85968405,259.08,259.02,10.0]
[1737242776634,18.73712709,259.09,259.01,5.0]
[1737242776816,18.73712709,259.03,258.96,5.0]
[1737242777017,18.73712709,258.99,258.94,5.0]
[1737242777327,30.25570737,259.07,258.98,5.0]
[1737242777633,30.25570737,259.07,258.99,26.78301148]
[1737242777837,23.776884,259.05,258.99,26.78301148]
[1737242778038,27.18405758,259.06,259.01,19.93136807]
[1737242778332,1.37990978,259.13,259.08,5.0]
[1737242778536,12.6305135,259.21,259.09,5.0]
[1737242778744,30.25570737,259.25,259.15,5.0]
[1737242778917,30.25570737,259.25,259.17,35.25570737]
[1737242779116,0.175,259.27,259.2,30.25570737]
[1737242779343,0.175,259.27,259.16,11.50252225]
[1737242779344,0.175,259.27,259.26,5.0]
[1737242779650,0.175,259.27,259.25,30.25570737]
[1737242779651,1.70182354,259.27,259.25,5.0]
[1737242779818,1.70182354,259.27,259.26,2.54797408]
[1737242779819,30.43070737,259.27,259.26,2.54797408]
[1737242780440,30.43070737,259.27,259.26,7.58854062]
[1737242780619,30.43070737,259.27,259.26,5.92194062]
[1737242780926,54.20759137,259.27,259.26,12.31309684]
[1737242781136,20.0,259.24,259.21,9.41308296]
[1737242781340,84.28829874,259.22,259.21,7.74648296]
[1737242781519,90.75569874,259.22,259.21,7.74648296]
[1737242781837,90.75569874,259.22,259.12,34.38993532]
[1737242782044,54.03259137,259.13,258.99,35.25570737]
[1737242782232,54.03259137,259.13,258.98,5.0]
[1737242782233,23.776884,259.04,258.98,5.0]
[1737242782436,30.25570737,259.01,258.98,5.0]
[1737242782739,30.25570737,259.13,259.04,10.0]
[1737242782916,30.25570737,259.13,259.04,40.25570737]
[1737242783120,23.776884,259.12,259.08,5.0]
[1737242783335,30.25570737,259.15,259.08,5.0]
[1737242783829,30.25570737,259.17,259.11,10.0]
[1737242784037,30.25570737,259.17,259.09,5.0]
[1737242784231,30.25570737,259.15,259.09,5.0]
[1737242784836,45.598,259.21,259.04,40.25570737]
[1737242784837,30.25570737,259.13,259.04,40.25570737]
[1737242785029,30.25570737,259.13,259.04,35.25570737]
[1737242785336,30.25570737,259.13,259.06,30.25570737]
[1737242785533,30.25570737,259.19,259.1,40.25570737]
[1737242785718,30.25570737,259.19,259.13,10.0]
[1737242785921,30.25570737,259.19,258.97,17.7968152]
[1737242785922,30.25570737,259.17,259.08,40.25570737]
[1737242786124,30.25570737,259.15,259.08,35.25570737]
[1737242786324,30.25570737,259.17,259.1,5.0]
[1737242786621,30.25570737,259.19,259.1,35.25570737]
[1737242786815,30.25570737,259.17,259.1,30.25570737]
[1737242787022,30.25570737,259.17,259.1,35.25570737]
[1737242787222,30.25570737,259.15,259.09,5.0]
[1737242788057,41.74,259.21,259.14,40.25570737]
[1737242789044,0.175,259.27,259.21,5.0]
[1737242789231,0.175,259.27,259.19,35.25570737]
[1737242789232,0.175,259.27,259.2,30.25570737]
[1737242789440,30.25570737,259.26,259.16,40.25570737]
[1737242789640,3.8572,259.26,259.19,30.25570737]
[1737242789831,0.175,259.27,259.19,30.25570737]
[1737242790034,0.175,259.27,259.22,10.0]
[1737242790340,0.175,259.27,259.25,10.0]
[1737242790642,0.063,259.32,259.31,10.0]
[1737242790943,0.063,259.32,259.31,40.25570737]
[1737242791439,0.063,259.32,259.29,5.0]
[1737242791635,0.063,259.32,259.31,10.0]
[1737242791939,0.063,259.32,259.28,31.90920737]
[1737242792147,0.063,259.32,259.31,5.0]
[1737242792531,0.063,259.32,259.28,1.6535]
[1737242793136,30.25570737,259.31,259.27,5.0]
[1737242793727,30.25570737,259.3,259.27,5.0]
[1737242793932,30.25570737,259.3,259.21,30.25570737]
[1737242794140,30.25570737,259.28,259.2,5.0]
[1737242794537,30.25570737,259.28,259.2,10.0]
[1737242795043,3.9193,259.32,259.27,5.0]
[1737242795044,0.063,259.32,259.27,5.0]
[1737242795227,0.063,259.32,259.29,5.0]
[1737242795565,0.063,259.32,259.31,10.0]
[1737242795845,30.25570737,259.37,259.31,16.4143]
[1737242796041,3.8454,260.05,259.8,5.0]
[1737242796249,28.26928786,260.24,259.8,10.0]
[1737242796250,19.2238,260.1,259.8,10.0]
[1737242796432,1.94782567,259.84,259.8,40.25570737]
[1737242796627,3.8463,259.99,259.87,5.0]
[1737242796830,0.2379,260.35,259.93,5.0]
[1737242796831,3.8458,260.02,259.93,5.0]
[1737242797044,30.25570737,259.97,259.84,5.0]
[1737242797227,30.25570737,259.95,259.86,5.0]
[1737242797428,30.25570737,259.91,259.8,10.0]
[1737242797634,30.25570737,259.91,259.79,30.25570737]
[1737242797845,3.8476,259.9,259.75,5.0]
[1737242798044,3.847,259.94,259.87,5.0]
[1737242798230,30.25570737,259.97,259.85,5.0]
[1737242798425,30.25570737,259.97,259.87,5.0]
[1737242798631,3.8464,259.98,259.89,5.0]
[1737242798945,30.25570737,259.97,259.88,5.0]
[1737242799140,30.25570737,259.99,259.94,5.0]
[1737242799332,30.25570737,259.99,259.92,10.0]
[1737242799533,30.25570737,259.97,259.9,5.0]
[1737242799750,30.25570737,259.97,259.9,10.0]
[1737242800149,34.10230737,259.97,259.88,5.0]
[1737242800445,30.25570737,259.97,259.91,5.0]
[1737242800650,30.25570737,259.95,259.91,5.0]
[1737242800844,30.25570737,259.93,259.83,5.0]
[1737242801030,30.25570737,259.89,259.84,5.0]
[1737242801226,30.25570737,259.89,259.84,10.0]
[1737242801427,30.25570737,259.89,259.84,5.0]
[1737242801848,30.25570737,259.89,259.85,5.0]
[1737242802046,31.78091745,260.0,259.78,30.25570737]
[1737242802047,1.52521008,260.0,259.94,5.0]
[1737242802232,1.52521008,260.0,259.93,1.5076]
[1737242802432,1.52521008,260.0,259.99,5.0]
[1737242802926,1.52521008,260.0,259.99,40.83265431]
[1737242803132,0.23075,260.03,260.02,10.0]
[1737242803333,0.23075,260.03,260.02,40.25570737]
[1737242803737,0.23075,260.03,260.02,5.0]
[1737242804234,0.23075,260.03,260.02,40.25570737]
[1737242804438,0.23075,260.03,260.02,35.25570737]
[1737242804838,0.23075,260.03,260.02,5.0]
[1737242805449,0.23075,260.03,260.0,5.0]
[1737242805745,30.25570737,260.01,260.0,5.0]
[1737242805954,30.25570737,260.01,259.96,5.0]
[1737242806451,30.25570737,259.99,259.91,5.0]
[1737242806639,30.25570737,260.01,259.93,5.0]
[1737242806836,30.25570737,259.99,259.91,5.0]
[1737242807042,30.25570737,260.01,259.97,5.0]
[1737242807238,3.8458,260.02,259.97,5.0]
[1737242807437,0.26075,260.03,260.01,5.0]
[1737242808153,0.26075,260.03,260.02,5.57682621]
[1737242808542,0.26075,260.03,260.01,5.0]
[1737242808752,34.10050737,260.09,260.02,5.0]
[1737242808952,30.25570737,260.09,260.08,5.0]
[1737242809158,30.25570737,260.11,260.08,5.0]
[1737242809340,30.25570737,260.11,260.1,5.0]
[1737242809847,30.25570737,260.13,260.1,5.0]
[1737242810261,30.25570737,260.11,260.1,5.0]
[1737242810848,30.25570737,260.11,260.04,5.0]
[1737242811162,3.8433,260.19,260.11,5.0]
[1737242811360,30.25570737,260.11,260.07,5.0]
[1737242811743,13.4516,260.19,260.03,5.0]
[1737242811744,30.25570737,260.13,260.1,5.0]
[1737242812163,30.25570737,260.11,260.08,5.0]
[1737242812556,30.25570737,260.13,260.12,5.0]
[1737242812764,30.25570737,260.15,260.12,10.0]
[1737242813068,30.25570737,260.13,260.06,5.0]
[1737242813273,30.25570737,260.07,260.06,5.0]
[1737242813447,30.25570737,260.07,259.98,30.83238464]
[1737242813448,30.25570737,260.12,260.09,5.0]
[1737242813646,3.8424,260.25,260.09,5.0]
[1737242813847,34.09930737,260.17,260.13,5.0]
[1737242814062,30.25570737,260.17,260.16,5.0]
[1737242814266,3.8426,260.24,260.18,5.0]
[1737242814446,30.25570737,260.19,260.18,5.0]
[1737242814645,30.25570737,260.19,260.13,5.0]
[1737242814858,30.25570737,260.15,260.14,5.0]
[1737242815061,30.25570737,260.15,260.14,10.0]
[1737242815365,30.25570737,260.17,260.16,5.0]
[1737242815846,30.25570737,260.17,260.14,5.0]
[1737242816047,30.25570737,260.15,260.11,5.0]
[1737242816258,30.25570737,260.12,260.11,5.0]
[1737242816754,19.2097,260.29,260.11,10.0]
[1737242816952,30.25570737,260.12,260.11,5.0]
[1737242817355,23.776884,260.11,260.05,5.0]
[1737242817555,30.25570737,260.06,260.01,5.0]
[1737242817756,30.25570737,260.04,260.01,5.0]
[1737242818275,30.25570737,260.02,259.95,5.0]
[1737242818578,30.25570737,260.02,259.94,5.0]
[1737242818579,30.25570737,259.97,259.92,10.0]
[1737242818744,30.25570737,259.93,259.9,5.0]
[1737242819468,3.8457,260.03,259.97,10.0]
[1737242819669,30.25570737,259.99,259.95,10.0]
[1737242819964,30.25570737,259.99,259.98,10.0]
[1737242820270,30.25570737,260.02,260.0,5.0]
[1737242820969,30.25570737,260.02,260.01,5.0]
[1737242822173,9.6074,260.22,260.11,5.0]
[1737242822468,30.25570737,260.16,260.14,5.0]
[1737242822676,30.25570737,260.16,260.12,5.0]
[1737242822864,30.25570737,260.18,260.17,10.0]
[1737242823065,30.25570737,260.22,260.18,5.0]
[1737242823373,9.6054,260.27,260.18,35.83228787]
[1737242823374,30.25570737,260.27,260.18,35.83228787]
[1737242823571,30.25570737,260.21,260.17,5.0]
[1737242823774,34.12900737,260.19,260.18,5.0]
[1737242824071,34.12900737,260.19,260.17,5.0]
[1737242824278,23.776884,260.18,260.14,5.0]
[1737242824472,23.776884,260.14,260.04,5.0]
[1737242824655,30.25570737,260.08,260.05,5.0]
[1737242824855,30.25570737,260.06,260.03,5.0]
[1737242825263,30.25570737,260.08,260.07,5.0]
[1737242825596,30.25570737,260.08,260.05,5.0]
[1737242825775,30.25570737,260.08,259.99,30.25570737]
[1737242825776,30.25570737,260.08,260.03,5.0]
[1737242826082,30.25570737,260.06,260.03,5.0]
[1737242826276,30.25570737,260.09,260.05,10.0]
[1737242826450,30.25570737,260.09,260.07,5.0]
[1737242826655,30.25570737,260.09,260.04,5.0]
[1737242826851,30.25570737,260.11,260.1,10.0]
[1737242827153,30.25570737,260.11,260.08,5.0]
[1737242827357,3.8437,260.16,260.06,5.0]
[1737242827358,30.25570737,260.09,260.06,5.0]
[1737242827558,30.25570737,260.07,260.04,10.0]
[1737242827771,30.25570737,260.07,260.04,5.0]
[1737242828165,30.25570737,260.07,260.04,10.0]
[1737242828366,3.8452,260.06,260.04,10.0]
[1737242828561,54.03259137,260.05,260.01,0.063]
[1737242828753,30.25570737,260.02,259.94,10.0]
[1737242828959,30.25570737,259.95,259.94,5.0]
[1737242829155,23.776884,259.94,259.91,0.063]
[1737242829368,54.03259137,259.92,259.91,0.0001]
[1737242829575,30.25570737,259.92,259.91,0.0001]
[1737242829962,54.03259137,259.92,259.91,0.0001]
[1737242830380,30.25570737,259.94,259.93,5.0]
[1737242830580,3.8457,260.03,260.01,5.0]
[1737242830758,30.25570737,260.02,259.91,5.0001]
[1737242830965,54.03259137,259.92,259.91,0.0001]
[1737242831659,30.25570737,259.92,259.88,4.5001]
[1737242831989,23.776884,259.89,259.88,5.0]
[1737242832277,23.776884,259.89,259.85,5.0]
[1737242832479,0.4999,260.01,259.9,4.5001]
[1737242832770,30.25570737,259.93,259.88,5.0]
[1737242832956,30.25570737,259.91,259.87,5.0]
[1737242833155,30.25570737,259.93,259.92,5.0]
[1737242833356,30.25570737,259.95,259.92,4.5]
[1737242833555,30.25570737,259.95,259.93,4.5]
[1737242833781,30.25570737,259.95,259.94,4.5]
[1737242834576,34.10250737,259.95,259.94,4.5]
[1737242834875,34.10250737,259.95,259.93,4.5001]
[1737242835070,30.25570737,260.02,260.01,4.5]
[1737242835264,23.776884,260.01,259.98,4.5]
[1737242835465,23.776884,259.98,259.93,4.5]
[1737242835679,30.25570737,259.94,259.93,4.5]
[1737242836684,30.25570737,259.98,259.96,4.5]
[1737242837584,3.8465,259.97,259.96,4.5]
[1737242837785,3.8465,259.97,259.94,4.5001]
[1737242838089,30.25570737,259.96,259.92,4.5]
[1737242838679,30.25570737,259.96,259.93,4.5001]
[1737242838886,30.25570737,259.94,259.92,4.5]
[1737242839071,30.25570737,259.94,259.89,9.0001]
[1737242839275,30.25570737,259.94,259.91,4.5]
[1737242839486,30.25570737,259.96,259.91,9.0001]
[1737242839670,3.8468,259.95,259.93,4.5]
[1737242839994,3.8468,259.95,259.93,9.0001]
[1737242840379,3.8468,259.95,259.93,4.5]
[1737242840679,3.8468,259.95,259.94,4.5]
[1737242840873,9.6164,259.97,259.92,4.5]
[1737242841074,9.6164,259.97,259.95,4.5]
[1737242841288,23.776884,259.95,259.94,0.96266943]
[1737242841490,24.276784,259.95,259.92,6.943e-05]
[1737242841670,54.03259137,259.93,259.92,6.943e-05]
[1737242841871,23.776884,259.92,259.83,4.5001]
[1737242842072,30.25570737,259.84,259.76,4.5001]
[1737242842386,30.25570737,259.86,259.8,4.5001]
[1737242842578,30.25570737,259.86,259.78,30.25570737]
[1737242842579,30.25570737,259.84,259.78,4.5001]
[1737242842786,30.25570737,259.84,259.82,4.5001]
[1737242842989,30.25570737,259.86,259.79,4.5001]
[1737242843192,30.25570737,259.82,259.75,4.5001]
[1737242843687,30.25570737,259.84,259.79,4.5001]
[1737242843883,23.776884,259.83,259.79,4.5001]
[1737242844282,30.25570737,259.84,259.75,4.5001]
[1737242844677,30.25570737,259.84,259.8,4.5001]
[1737242844881,23.776884,259.83,259.76,34.75580737]
[1737242845189,23.776884,259.83,259.76,4.5001]
[1737242845584,3.8483,259.85,259.79,4.5001]
[1737242845788,23.776884,259.81,259.74,4.5631]
[1737242846080,23.776884,259.81,259.74,34.81880737]
[1737242846272,30.25570737,259.84,259.78,4.5001]
[1737242846583,54.03259137,259.84,259.76,30.25570737]
[1737242846781,54.03259137,259.84,259.75,4.5001]
[1737242846782,23.776884,259.79,259.75,4.5001]
[1737242848106,3.8494,259.78,259.77,4.5001]
[1737242848285,3.8494,259.78,259.75,4.5001]
[1737242848968,0.4999,259.89,259.75,4.5001]
[1737242848969,22.9063367,260.0,259.9,4.5001]
[1737242849169,22.9063367,260.0,259.81,8.2041]
[1737242849170,30.25570737,259.96,259.87,4.5001]
[1737242849387,30.25570737,259.94,259.93,4.5001]
[1737242849690,30.25570737,259.96,259.93,4.5001]
[1737242850087,3.8468,259.95,259.93,4.5001]
[1737242850486,30.25570737,259.94,259.92,4.5001]
[1737242850687,30.25570737,259.94,259.9,4.5001]
[1737242850888,3.8468,259.95,259.9,4.5001]
[1737242851875,23.776884,259.94,259.9,4.5001]
[1737242852076,54.03259137,259.94,259.9,4.5001]
[1737242852483,3.8471,259.93,259.9,4.5001]
[1737242853082,3.8471,259.93,259.85,29.87580737]
[1737242853773,3.8471,259.93,259.87,30.25570737]
[1737242853997,3.8471,259.93,259.89,30.25570737]
[1737242854378,3.8471,259.93,259.87,30.25570737]
[1737242855782,3.8474,259.91,259.87,30.25570737]
[1737242856098,54.03259137,259.9,259.81,30.25570737]
[1737242856679,19.2273,260.05,259.84,20.0]
[1737242856882,6.3974,260.18,260.02,30.25570737]
[1737242857091,6.3974,260.18,260.06,30.25570737]
[1737242857092,30.25570737,260.15,260.06,30.25570737]
[1737242857295,3.8436,260.17,260.12,30.25570737]
[1737242857473,30.25570737,260.16,260.01,0.57678796]
[1737242857674,30.25570737,260.12,260.04,30.25570737]
[1737242857874,13.4558,260.11,260.02,30.25570737]
[1737242858104,30.25570737,260.1,260.02,30.25570737]
[1737242858395,23.776884,260.09,260.0,30.25570737]
[1737242858602,13.4558,260.11,260.02,30.25570737]
[1737242858781,3.8445,260.11,260.04,30.25570737]
[1737242859187,3.8445,260.11,260.06,30.25570737]
[1737242859678,0.03,260.19,260.1,30.25570737]
[1737242859883,0.03,260.19,260.12,30.25570737]
[1737242860388,23.776884,260.16,260.08,30.25570737]
[1737242860588,30.25570737,260.15,260.06,30.25570737]
[1737242860900,23.776884,260.14,260.06,30.25570737]
[1737242861084,30.25570737,260.1,260.02,30.25570737]
[1737242861284,30.25570737,260.14,260.04,30.25570737]
[1737242861499,0.03,260.19,260.12,30.25570737]
[1737242861801,0.03,260.19,260.15,30.25570737]
[1737242861998,23.806884,260.19,260.15,30.25570737]
[1737242862301,0.03,260.19,260.13,30.25570737]
[1737242862883,23.776884,260.17,260.09,30.25570737]
[1737242863086,0.03,260.19,260.15,35.25570737]
[1737242863300,0.03,260.19,260.18,30.25570737]
[1737242863599,0.03,260.24,260.19,5.0]
[1737242863791,0.03,260.24,260.23,30.25570737]
[1737242864292,0.03,260.24,260.16,31.85330737]
[1737242864886,0.03,260.24,260.16,35.69700737]
[1737242865087,0.03,260.24,260.16,31.85330737]
[1737242865480,0.03,260.24,260.18,30.25570737]
[1737242865686,0.03,260.24,260.2,30.25570737]
[1737242866306,0.03,260.24,260.22,30.25570737]
[1737242866699,0.03,260.24,260.2,30.25570737]
[1737242867389,0.03,260.24,260.22,30.25570737]
[1737242868096,0.03,260.24,260.2,30.25570737]
[1737242868289,0.03,260.24,260.17,34.67578287]
[1737242868603,0.03,260.24,260.17,34.09930737]
[1737242868798,23.776884,260.17,260.06,0.57647018]
[1737242868999,30.25570737,260.08,259.96,31.85330737]
[1737242869303,30.25570737,260.03,259.96,1.5976]
[1737242869599,30.25570737,260.13,259.96,1.5976]
[1737242869600,30.25570737,260.01,259.96,1.5976]
[1737242870015,30.25570737,260.03,259.96,1.5976]
[1737242870800,34.10140737,260.03,259.96,1.5976]
[1737242871400,30.25570737,260.07,259.96,30.25570737]
[1737242871705,30.25570737,260.07,259.97,30.25570737]
[1737242871897,30.25570737,260.12,260.01,31.85330737]
[1737242872097,30.25570737,260.07,260.01,1.5976]
[1737242872288,30.25570737,260.09,260.01,1.5976]
[1737242873102,30.25570737,260.07,260.01,1.5976]
[1737242873489,30.25570737,260.09,260.01,5.4435]
[1737242873889,23.776884,260.15,260.01,5.4435]
[1737242874090,30.25570737,260.09,260.01,5.4435]
[1737242874291,0.03,260.24,260.08,40.25570737]
[1737242874490,0.03,260.24,260.16,30.25570737]
[1737242874906,0.03,260.24,260.18,30.25570737]
[1737242875105,5.0,260.13,259.86,3.8482]
[1737242875408,30.25570737,259.87,259.85,15.449085]
[1737242875596,0.57647716,259.86,259.85,0.063]
[1737242876709,30.25570737,259.89,259.85,0.063]
[1737242876884,0.57647716,259.88,259.85,0.063]
[1737242877086,30.25570737,259.89,259.85,0.063]
[1737242877500,30.25570737,259.87,259.85,0.063]
[1737242877707,0.57647716,259.86,259.85,0.063]
[1737242878786,24.35336116,259.86,259.85,0.063]
[1737242879188,0.57647716,259.86,259.85,0.063]
[1737242879817,4.42467716,259.86,259.85,0.063]
[1737242879990,28.20156116,259.86,259.85,0.063]
[1737242880185,0.57647716,259.86,259.85,0.063]
[1737242880495,30.25570737,259.87,259.85,0.063]
[1737242880811,0.57647716,259.86,259.85,0.063]
[1737242884211,0.57647716,259.89,259.85,0.063]
[1737242885591,4.42427716,259.89,259.85,0.063]
[1737242885903,0.57647716,259.89,259.85,0.063]
[1737242886106,30.25570737,259.93,259.85,0.063]
[1737242886407,0.57647716,259.92,259.85,3.9113]
[1737242886609,0.57647716,259.92,259.86,30.25570737]
[1737242886796,0.57647716,259.96,259.86,30.25570737]
[1737242886996,0.57647716,259.96,259.86,34.10380737]
[1737242887200,4.42317716,259.96,259.86,34.10380737]
[1737242887610,6.1094,260.16,259.95,5.0]
[1737242887795,30.25570737,260.14,260.04,30.25570737]
[1737242888120,23.776884,260.11,260.04,30.25570737]
[1737242888312,30.25570737,260.14,260.04,30.25570737]
[1737242888515,34.09950737,260.16,260.06,30.25570737]
[1737242888807,0.03,260.24,260.15,30.25570737]
[1737242888995,0.03,260.24,260.21,30.25570737]
[1737242889495,0.03,260.24,260.23,30.25570737]
[1737242892196,0.03,260.24,260.23,45.62346737]
[1737242892397,0.03,260.24,260.23,50.04254931]
[1737242892590,0.03,260.24,260.23,34.67478931]
[1737242892799,0.03,260.3,260.27,20.0]
[1737242893132,0.03,260.3,260.29,34.09750737]
[1737242893295,3.8395,260.45,260.38,30.25570737]
[1737242893802,30.25570737,260.43,260.34,30.25570737]
[1737242894199,0.03,260.51,260.36,30.25570737]
[1737242894518,0.03,260.51,260.3,2.17828824]
[1737242894519,0.03,260.51,260.44,30.25570737]
[1737242894700,30.25570737,260.47,260.38,30.25570737]
[1737242895097,30.25570737,260.49,260.4,30.25570737]
[1737242895311,30.25570737,260.47,260.38,3.8404]
[1737242895514,0.03,260.51,260.5,19.6507]
[1737242895696,0.03,260.51,260.46,30.25570737]
[1737242895899,0.03,260.51,260.47,0.57585115]
[1737242896111,0.03,260.51,260.5,30.25570737]
[1737242896509,0.03,260.51,260.5,30.83137262]
[1737242896712,0.03,260.51,260.5,30.25570737]
[1737242897223,0.03,260.51,260.48,30.25570737]
[1737242897405,0.03,260.51,260.46,30.25570737]
[1737242897601,30.25570737,260.49,260.41,0.5758214]
[1737242897809,30.25570737,260.47,260.38,30.25570737]
[1737242898001,30.25570737,260.47,260.39,0.5759749]
[1737242898202,0.03,260.51,260.46,30.25570737]
[1737242898628,30.28570737,260.51,260.42,30.25570737]
[1737242898802,30.25570737,260.49,260.4,30.25570737]
[1737242899117,30.25570737,260.49,260.38,30.25570737]
[1737242899312,0.03,260.51,260.44,30.25570737]
[1737242899515,23.806884,260.51,260.44,30.25570737]
[1737242899823,0.03,260.51,260.44,30.25570737]
[1737242900022,0.03,260.51,260.46,30.25570737]
[1737242900326,0.03,260.51,260.44,30.25570737]
[1737242900524,23.806884,260.51,260.44,30.25570737]
[1737242900813,30.25570737,260.5,260.42,30.25570737]
[1737242901025,23.776884,260.47,260.38,30.25570737]
[1737242901213,23.776884,260.47,260.39,0.57597935]
[1737242901911,23.776884,260.47,260.38,30.25570737]
[1737242902103,23.776884,260.43,260.34,30.25570737]
[1737242902306,30.25570737,260.42,260.35,0.57604729]
[1737242902505,23.776884,260.41,260.32,30.25570737]
[1737242902705,30.25570737,260.42,260.33,0.57611099]
[1737242903410,30.25570737,260.42,260.33,0.57609441]
[1737242903720,0.03,260.51,260.32,30.25570737]
[1737242903721,30.25570737,260.4,260.32,30.25570737]
[1737242903926,30.25570737,260.4,260.33,0.57611127]
[1737242904123,3.8395,260.45,260.44,0.063]
[1737242904311,30.25570737,260.45,260.44,0.063]
[1737242905325,57.87209137,260.45,260.44,0.063]
[1737242905521,57.87209137,260.45,260.22,30.25570737]
[1737242905522,20.0,260.41,260.22,30.25570737]
[1737242905714,30.25570737,260.25,260.18,2.09650571]
[1737242905907,3.8387,260.5,260.24,30.25570737]
[1737242906121,30.25570737,260.57,260.47,30.25570737]
[1737242906324,30.25570737,260.57,260.41,1.5202]
[1737242906325,30.25570737,260.55,260.45,30.25570737]
[1737242906626,6.1648,260.71,260.5,30.25570737]
[1737242906823,30.25570737,260.59,260.48,30.25570737]
[1737242907139,30.25570737,260.57,260.48,30.25570737]
[1737242907509,30.25570737,260.52,260.42,30.25570737]
[1737242907727,30.25570737,260.46,260.37,30.25570737]
[1737242907914,30.25570737,260.5,260.39,30.25570737]
[1737242908109,30.25570737,260.48,260.4,0.57593891]
[1737242908413,30.25570737,260.41,260.28,2.09611916]
[1737242908719,30.25570737,260.39,260.29,30.25570737]
[1737242908902,30.25570737,260.39,260.3,0.57608389]
[1737242909101,30.25570737,260.41,260.31,30.25570737]
[1737242909304,30.25570737,260.41,260.32,0.57612187]
[1737242909706,30.25570737,260.43,260.33,30.25570737]
[1737242909931,30.28570737,260.51,260.41,30.25570737]
[1737242910125,30.28570737,260.51,260.42,0.57592863]
[1737242910334,30.28570737,260.51,260.41,30.25570737]
[1737242910503,30.28570737,260.51,260.28,2.09604177]
[1737242910504,0.03,260.51,260.5,30.25570737]
[1737242910710,89.27005897,260.63,260.53,20.0]
[1737242910909,89.27005897,260.63,260.61,30.25570737]
[1737242911325,0.03,260.78,260.65,20.0]
[1737242911627,0.03,260.78,260.51,1.5202]
[1737242911628,30.25570737,260.75,260.64,30.25570737]
[1737242911819,3.8647,260.78,260.51,1.5202]
[1737242911820,30.25570737,260.77,260.66,30.25570737]
[1737242912218,30.25570737,260.77,260.68,30.25570737]
[1737242912530,30.25570737,260.77,260.53,0.57541992]
[1737242912531,30.25570737,260.73,260.64,30.25570737]
[1737242912732,30.25570737,260.73,260.62,30.25570737]
[1737242913115,30.25570737,260.71,260.62,30.25570737]
[1737242913613,30.25570737,260.71,260.56,0.57550536]
[1737242913614,23.776884,260.68,260.58,30.25570737]
[1737242913922,30.25570737,260.64,260.54,30.25570737]
[1737242914224,23.776884,260.55,260.46,30.25570737]
[1737242914418,30.25570737,260.6,260.5,30.25570737]
[1737242914619,30.25570737,260.64,260.54,30.25570737]
[1737242914826,30.25570737,260.62,260.52,30.25570737]
[1737242915020,30.25570737,260.67,260.56,30.25570737]
[1737242915412,23.776884,260.66,260.56,30.25570737]
[1737242915641,3.836,260.69,260.45,15.348429]
[1737242915642,30.25570737,260.69,260.6,30.25570737]
[1737242915827,30.25570737,260.67,260.56,30.25570737]
[1737242916125,23.776884,260.66,260.58,30.25570737]
[1737242916626,30.25570737,260.65,260.56,30.25570737]
[1737242917008,30.25570737,260.7,260.6,30.25570737]
[1737242917206,30.25570737,260.7,260.57,0.57558334]
[1737242917207,30.25570737,260.72,260.62,30.25570737]
[1737242917624,23.776884,260.71,260.62,30.25570737]
[1737242917807,34.09130737,260.72,260.62,30.25570737]
[1737242918006,30.25570737,260.68,260.58,30.25570737]
[1737242918208,30.25570737,260.61,260.52,30.25570737]
[1737242918515,30.25570737,260.59,260.5,30.25570737]
[1737242918716,23.776884,260.58,260.5,30.25570737]
[1737242919220,30.25570737,260.63,260.54,30.25570737]
[1737242919415,30.25570737,260.56,260.47,30.25570737]